fUST/lending_fUST_20240501
["ID","MTS","AMOUNT","RATE_DAILY","PERIOD"]
[325159384,1714543845777,-500.0,0.00076712,120]
[325159386,1714543845787,-4429.82,0.00076712,120]
[325159388,1714543845796,-479.12841342,0.00076712,120]
[325159390,1714543845805,-500.0,0.00076712,120]
[325159392,1714543845814,-500.0,0.00076712,120]
[325159394,1714543845825,-500.0,0.00076712,120]
[325159396,1714543845835,-500.0,0.00076712,120]
[325159398,1714543845845,-500.0,0.00076712,120]
[325159400,1714543845857,-500.0,0.00076712,120]
[325159402,1714543845866,-500.0,0.00076712,120]
[325159404,1714543845876,-500.0,0.00076712,120]
[325159406,1714543845886,-2056.11,0.00076712,120]
[325159408,1714543845895,-500.0,0.00076712,120]
[325159410,1714543845906,-547.84897491,0.00076712,120]
[325159412,1714543845915,-500.0,0.00076712,120]
[325159414,1714543845925,-500.0,0.00076712,120]
[325159416,1714543845935,-500.0,0.00076712,120]
[325159418,1714543845944,-500.0,0.00076712,60]
[325159421,1714543845954,-500.0,0.00076712,120]
[325159422,1714543845963,-500.0,0.00076712,120]
[325159424,1714543845973,-500.0,0.00076712,120]
[325159427,1714543845983,-500.0,0.00076712,120]
[325159428,1714543845992,-500.0,0.00076712,120]
[325159430,1714543846002,-500.0,0.00076712,120]
[325159433,1714543846012,-500.0,0.00076712,120]
[325159434,1714543846021,-500.0,0.00076712,120]
[325159437,1714543846031,-500.0,0.00076712,120]
[325159439,1714543846040,-500.0,0.00076712,120]
[325159442,1714543846050,-563.54,0.00076712,120]
[325159445,1714543846060,-501.23152838,0.00076712,120]
[325159447,1714543846069,-1184.73,0.00076712,120]
[325159452,1714543846079,-501.5383765,0.00076712,120]
[325159454,1714543846088,-314.27036028,0.00076712,120]
[325159457,1714543846098,-500.0,0.00076712,120]
[325159459,1714543846107,-956.98,0.00076712,120]
[325159462,1714543846116,-500.0,0.00076712,120]
[325159465,1714543846127,-501.65379551,0.00076712,120]
[325159469,1714543846136,-500.0,0.00076712,120]
[325159471,1714543846145,-500.0,0.00076712,120]
[325159473,1714543846155,-500.0,0.00076712,120]
[325159475,1714543846164,-500.0,0.00076712,120]
[325159477,1714543846174,-500.0,0.00076712,120]
[325159479,1714543846183,-500.0,0.00076712,120]
[325159481,1714543846192,-500.0,0.00076712,120]
[325159483,1714543846201,-500.0,0.00076712,120]
[325159485,1714543846211,-500.0,0.00076712,120]
[325159487,1714543846220,-500.0,0.00076712,120]
[325159489,1714543846230,-424.89472744,0.00076712,120]
[325159491,1714543846240,-1480.7,0.00076712,120]
[325159493,1714543846249,-500.0,0.00076712,120]
[325159495,1714543846258,-500.0,0.00076712,120]
[325159497,1714543846268,-500.0,0.00076712,120]
[325159499,1714543846277,-3279.45,0.00076712,120]
[325159501,1714543846287,-361.40890213,0.00076712,120]
[325159503,1714543846295,-613.27,0.00076712,21]
[325159505,1714543846305,-500.0,0.00076712,120]
[325159507,1714543846314,-500.0,0.00076712,120]
[325159509,1714543846323,-500.0,0.00076712,120]
[325159511,1714543846332,-500.0,0.00076712,60]
[325159513,1714543846342,-500.0,0.00076712,120]
[325159515,1714543846351,-2150.1,0.00076712,120]
[325159517,1714543846361,-825.32,0.00076712,120]
[325159519,1714543846371,-500.0,0.00076712,120]
[325159521,1714543846382,-500.0,0.00076712,120]
[325159523,1714543846391,-500.0,0.00076712,120]
[325159525,1714543846400,-500.0,0.00076712,120]
[325159527,1714543846410,-501.91272669,0.00076712,120]
[325159529,1714543846420,-506.21028744,0.00076712,120]
[325159531,1714543846429,-500.0,0.00076712,120]
[325159533,1714543846438,-500.0,0.00076712,120]
[325159535,1714543846447,-10000.0,0.00076945,120]
[325159537,1714543846457,-582.47,0.00076998,120]
[325159539,1714543846466,-582.47,0.00076998,120]
[325159541,1714543846475,-999.0,0.00076998,120]
[325159543,1714543846484,-999.0,0.00076998,120]
[325159545,1714543846494,-541.64934852,0.00076998,120]
[325159547,1714543846503,-500.0,0.00076999,7]
[325159549,1714543846513,-500.0,0.00076999,120]
[325159551,1714543846522,-500.0,0.00076999,120]
[325159553,1714543846532,-500.0,0.00076999,120]
[325159555,1714543846541,-500.0,0.00076999,30]
[325159557,1714543846554,-500.0,0.00076999,120]
[325159559,1714543846565,-500.0,0.00076999,120]
[325159561,1714543846574,-500.0,0.00076999,120]
[325159563,1714543846583,-516.72858567,0.00076999,120]
[325159565,1714543846592,-500.0,0.00076999,120]
[325159567,1714543846603,-500.0,0.00076999,120]
[325159569,1714543846612,-157.36028237,0.00076999,120]
[325159571,1714543846622,-500.0,0.00076999,120]
[325159573,1714543846632,-500.0,0.00076999,120]
[325159575,1714543846642,-500.0,0.00076999,120]
[325159577,1714543846651,-500.0,0.00076999,120]
[325159579,1714543846661,-500.0,0.00076999,120]
[325159581,1714543846671,-500.0,0.00076999,120]
[325159583,1714543846681,-500.0,0.00076999,120]
[325159585,1714543846691,-500.0,0.00076999,120]
[325159587,1714543846699,-2130.64,0.00076999,120]
[325159589,1714543846708,-2049.74,0.00076999,120]
[325159591,1714543846718,-500.0,0.00076999,120]
[325159593,1714543846727,-500.0,0.00076999,120]
[325159595,1714543846735,-500.0,0.00076999,120]
[325159597,1714543846746,-506.11602244,0.00076999,120]
[325159599,1714543846755,-500.0,0.00076999,120]
[325159601,1714543846763,-500.0,0.00076999,120]
[325159603,1714543846772,-500.0,0.00076999,120]
[325159605,1714543846781,-500.0,0.00076999,120]
[325159607,1714543846791,-540.29187084,0.00076999,120]
[325159609,1714543846799,-500.0,0.00076999,120]
[325159611,1714543846809,-500.0,0.00076999,120]
[325159613,1714543846819,-500.0,0.00076999,120]
[325159615,1714543846828,-500.0,0.00076999,120]
[325159617,1714543846838,-1691.22,0.00076999,120]
[325159619,1714543846847,-1337.34,0.00076999,120]
[325159621,1714543846856,-528.22,0.00076999,120]
[325159623,1714543846866,-500.0,0.00076999,120]
[325159625,1714543846876,-500.0,0.00076999,120]
[325159627,1714543846885,-502.92570621,0.00076999,120]
[325159629,1714543846895,-500.0,0.00076999,120]
[325159631,1714543846906,-500.0,0.00076999,120]
[325159633,1714543846915,-500.0,0.00076999,120]
[325159635,1714543846924,-500.0,0.00076999,120]
[325159637,1714543846934,-500.0,0.00076999,120]
[325159639,1714543846943,-500.0,0.00076999,120]
[325159641,1714543846953,-500.0,0.00076999,120]
[325159643,1714543846963,-10000.0,0.00077666,120]
[325159645,1714543846972,-1119.4306243,0.0007788,120]
[325159660,1714543847101,-156.33964756,0.00071232,120]
[325159662,1714543847110,-1266.5693757,0.0007788,120]
[325159664,1714543847120,-582.47,0.00077998,120]
[325159666,1714543847132,-999.0,0.00077998,120]
[325159668,1714543847141,-582.47,0.00077999,120]
[325159670,1714543847150,-976.49289246,0.00077999,120]
[325159672,1714543847159,-224.44974555,0.00078,60]
[325159674,1714543847171,-2952.81297989,0.00078,60]
[325159704,1714543847435,1028.91692812,9.999e-05,2]
[325159706,1714543847448,-10090.20201688,0.00078,60]
[325159723,1714543847606,-284.61,0.00078,60]
[325159726,1714543847617,-3191.40121784,0.00078,60]
[325160461,1714543882007,857.43077344,0.00020913,2]
[325160462,1714543884952,427.1316,0.00046483,2]
[325160463,1714543898024,446.72143296,0.00020913,2]
[325160465,1714543920029,446.72143296,0.00020913,2]
[325160475,1714543924765,779.14844528,0.0006306,120]
[325160486,1714543939976,189.05212857,0.00019178,2]
[325160487,1714543942035,344.04787143,0.00020913,2]
[325160488,1714543942073,102.67356153,0.00020913,2]
[325160489,1714543952122,155.26053656,0.00020913,2]
[325160493,1714543958035,446.72143296,0.00020913,2]
[325160494,1714543973610,1461.31442593,0.00020913,2]
[325160495,1714543978031,446.72143296,0.00020913,2]
[325160496,1714543994041,446.72143296,0.00020913,2]
[325160498,1714544012038,446.72143296,0.00020913,2]
[325160501,1714544032416,446.72143296,0.00020913,2]
[325160506,1714544058042,446.72143296,0.00020913,2]
[325160509,1714544074051,446.72143296,0.00020913,2]
[325160512,1714544090946,446.72143296,0.00020913,2]
[325160514,1714544110058,200.73876081,0.00020913,2]
[325160527,1714544506642,1600.0,0.0001,2]
[325160528,1714544591558,154.55179978,0.00020913,2]
[325160529,1714544601450,1445.44356773,0.00020913,2]
[325160548,1714544713229,718.54795119,0.00020913,2]
[325160549,1714544713730,730.81737118,0.00020913,2]
[325160551,1714544717518,157.71927936,0.00020913,2]
[325160552,1714544718048,154.55179978,0.00020913,2]
[325160553,1714544719445,1200.43346857,0.00020913,2]
[325160554,1714544720106,155.02842893,0.00020913,2]
[325160555,1714544720136,200.11468728,0.00020913,2]
[325160556,1714544721136,154.65974855,0.00020913,2]
[325160557,1714544721278,476.36778717,0.00020913,2]
[325160558,1714544721861,295.38051911,0.00020913,2]
[325160559,1714544722226,155.47112681,0.00020913,2]
[325160560,1714544723243,252.37482425,0.00020913,2]
[325160561,1714544724216,154.85372289,0.00020913,2]
[325160562,1714544724712,156.09900906,0.00020913,2]
[325160563,1714544726413,154.65974855,0.00020913,2]
[325160564,1714544733298,410.19888165,0.00020913,2]
[325160565,1714544739523,-150.0,0.00036101,3]
[325160566,1714544739544,-18.76425031,0.00046621,2]
[325160567,1714544740926,769.1530622,0.0001,2]
[325160569,1714544755018,572.63307088,0.00020913,5]
[325160570,1714544756166,-408.36734969,0.00046621,2]
[325160571,1714544756186,-663.44374221,0.00048104,120]
[325160572,1714544756206,-163.521656,0.00049863,2]
[325160573,1714544756226,-174.833539,0.00049863,2]
[325160574,1714544756244,-266.55853325,0.0005,120]
[325160576,1714544761654,730.70803192,0.00020913,2]
[325160580,1714544845713,-427.1316,0.00046621,2]
[325160581,1714544845733,-178.06762619,0.000499,2]
[325160582,1714544845753,-1233.44146675,0.0005,120]
[325160583,1714544845773,-170.53664524,0.00051587,60]
[325160584,1714544845794,-663.44374221,0.00052114,120]
[325160585,1714544845814,-153.35599852,0.00052955,60]
[325160586,1714544845837,-663.44374221,0.00057462,120]
[325160587,1714544845858,-600.0,0.0006,30]
[325160588,1714544845882,-153.35599852,0.00061444,120]
[325160589,1714544845903,-9220.85155472,0.0006306,120]
[325160590,1714544845923,-663.4437422,0.00064146,120]
[325160591,1714544845950,-163.521656,0.00064384,2]
[325160592,1714544845973,-2681.61612064,0.00066277,120]
[325160593,1714544849987,-2633.45173935,0.00066277,120]
[325160595,1714544865493,154.79876161,0.00020913,2]
[325160601,1714544947197,-3000.0,0.00039177,2]
[325160602,1714544947218,-151.0,0.00045,120]
[325160603,1714544947239,-499.5,0.00046584,2]
[325160604,1714544947261,-151.0,0.00052493,120]
[325160605,1714544947286,-153.40507966,0.0005307,60]
[325160606,1714544947309,-153.40507966,0.00059876,120]
[325160607,1714544947330,-514.22610552,0.0006,30]
[325160608,1714544947351,-151.0,0.0006,120]
[325160609,1714544947372,-4684.93214001,0.00066277,120]
[325160610,1714544947394,-151.0,0.00067507,120]
[325160611,1714544947414,-10000.0,0.00069657,120]
[325160612,1714544947434,-2310.313,0.000708,110]
[325160613,1714544947455,-40028.06477209,0.00071,120]
[325160614,1714544947476,-340.62871227,0.00071,14]
[325160615,1714544947497,-2919.93830754,0.000711,120]
[325160616,1714544947517,-1550.51,0.00071222,3]
[325160617,1714544947536,-2850.11,0.00071222,3]
[325160618,1714544947556,-2375.09,0.00071222,3]
[325160619,1714544947576,-197.80807142,0.00071231,90]
[325160620,1714544947598,-225.33552172,0.00071231,31]
[325160621,1714544947621,-500.0,0.00071231,120]
[325160622,1714544947642,-500.0,0.00071231,120]
[325160623,1714544947663,-500.0,0.00071231,120]
[325160624,1714544947685,-500.0,0.00071231,120]
[325160625,1714544947707,-500.0,0.00071231,120]
[325160626,1714544947726,-999.0,0.00071231,120]
[325160627,1714544947746,-999.0,0.00071231,120]
[325160628,1714544947767,-999.0,0.00071231,120]
[325160629,1714544947787,-999.0,0.00071231,120]
[325160630,1714544947806,-999.0,0.00071231,120]
[325160631,1714544947825,-500.0,0.00071232,120]
[325160632,1714544947845,-502.525292,0.00071232,120]
[325160633,1714544947866,-500.0,0.00071232,120]
[325160634,1714544947886,-500.0,0.00071232,120]
[325160635,1714544947909,-500.0,0.00071232,120]
[325160636,1714544947928,-500.0,0.00071232,120]
[325160637,1714544947949,-500.0,0.00071232,120]
[325160638,1714544947968,-500.0,0.00071232,120]
[325160639,1714544947989,-500.0,0.00071232,120]
[325160640,1714544948009,-500.0,0.00071232,3]
[325160641,1714544948031,-500.0,0.00071232,120]
[325160642,1714544948050,-500.0,0.00071232,120]
[325160643,1714544948070,-2094.24,0.00071232,120]
[325160644,1714544948090,-500.0,0.00071232,120]
[325160645,1714544948111,-500.0,0.00071232,120]
[325160646,1714544948133,-500.0,0.00071232,120]
[325160647,1714544948271,-500.0,0.00071232,120]
[325160648,1714544948294,-500.0,0.00071232,120]
[325160649,1714544948314,-500.0,0.00071232,120]
[325160650,1714544948333,-500.0,0.00071232,120]
[325160651,1714544948354,-500.0,0.00071232,120]
[325160652,1714544948375,-500.0,0.00071232,120]
[325160653,1714544948394,-500.0,0.00071232,120]
[325160654,1714544948414,-500.0,0.00071232,120]
[325160655,1714544948433,-500.0,0.00071232,120]
[325160656,1714544948453,-500.0,0.00071232,120]
[325160657,1714544948473,-500.0,0.00071232,120]
[325160658,1714544948492,-500.0,0.00071232,120]
[325160659,1714544948512,-500.0,0.00071232,120]
[325160660,1714544948533,-546.14683041,0.00071232,120]
[325160661,1714544948553,-500.0,0.00071232,120]
[325160662,1714544948572,-500.0,0.00071232,120]
[325160663,1714544948591,-500.0,0.00071232,120]
[325160664,1714544948610,-500.0,0.00071232,120]
[325160665,1714544948629,-500.0,0.00071232,120]
[325160666,1714544948648,-500.0,0.00071232,120]
[325160667,1714544948667,-500.0,0.00071232,120]
[325160668,1714544948687,-500.0,0.00071232,120]
[325160669,1714544948707,-500.0,0.00071232,120]
[325160670,1714544948727,-500.74319217,0.00071232,120]
[325160671,1714544948748,-545.62056773,0.00071232,120]
[325160672,1714544948772,-500.0,0.00071232,120]
[325160673,1714544948792,-1538.11,0.00071232,120]
[325160674,1714544948815,-500.0,0.00071232,120]
[325160675,1714544948837,-500.0,0.00071232,120]
[325160676,1714544948858,-500.0,0.00071232,120]
[325160677,1714544948878,-500.0,0.00071232,120]
[325160678,1714544948904,-500.0,0.00071232,120]
[325160679,1714544948926,-500.0,0.00071232,120]
[325160680,1714544948949,-500.0,0.00071232,120]
[325160681,1714544948971,-501.75869966,0.00071232,120]
[325160682,1714544948998,-500.0,0.00071232,120]
[325160683,1714544949018,-500.83069279,0.00071232,120]
[325160684,1714544949039,-500.0,0.00071232,120]
[325160685,1714544949057,-369.25973567,0.00071232,120]
[325160686,1714544949078,-487.83044677,0.00071232,120]
[325160687,1714544949097,-190.77695748,0.00071232,120]
[325160688,1714544949118,-1145.84,0.00071232,120]
[325160689,1714544949140,-500.37952612,0.00071232,120]
[325160690,1714544949160,-500.70258277,0.00071232,120]
[325160691,1714544949179,-241.4987719,0.00071232,120]
[325160692,1714544949200,-500.0,0.00071232,120]
[325160693,1714544949221,-500.0,0.00071232,120]
[325160694,1714544949242,-1102.76,0.00071232,120]
[325160695,1714544949261,-500.0,0.00071232,120]
[325160696,1714544949284,-500.0,0.00071232,120]
[325160697,1714544949303,-500.0,0.00071232,120]
[325160698,1714544949324,-185.67983602,0.00071232,120]
[325160699,1714544949345,-500.0,0.00071232,120]
[325160700,1714544949366,-500.0,0.00071232,120]
[325160701,1714544949386,-500.0,0.00071232,120]
[325160702,1714544949406,-500.0,0.00071232,120]
[325160703,1714544949426,-500.0,0.00071232,120]
[325160704,1714544949446,-500.0,0.00071232,120]
[325160705,1714544949467,-500.0,0.00071232,120]
[325160706,1714544949487,-500.0,0.00071232,120]
[325160707,1714544949506,-562.06857997,0.00071232,120]
[325160708,1714544949527,-500.0,0.00071232,120]
[325160709,1714544949547,-500.0,0.00071232,120]
[325160710,1714544949569,-500.0,0.00071232,120]
[325160711,1714544949589,-500.0,0.00071232,120]
[325160712,1714544949610,-500.0,0.00071232,120]
[325160713,1714544949630,-500.0,0.00071232,120]
[325160714,1714544949651,-500.0,0.00071232,120]
[325160715,1714544949671,-500.0,0.00071232,120]
[325160716,1714544949693,-2212.74,0.00071232,120]
[325160717,1714544949715,-500.0,0.00071232,120]
[325160718,1714544949737,-179.98884023,0.00071232,120]
[325160719,1714544949758,-500.0,0.00071232,120]
[325160720,1714544949779,-500.0,0.00071232,120]
[325160721,1714544949798,-500.0,0.00071232,120]
[325160722,1714544949820,-500.0,0.00071232,120]
[325160723,1714544949841,-500.0,0.00071232,120]
[325160724,1714544949864,-516.10449329,0.00071232,120]
[325160725,1714544949886,-500.0,0.00071232,120]
[325160726,1714544949909,-500.0,0.00071232,120]
[325160727,1714544949931,-500.0,0.00071232,120]
[325160728,1714544949954,-500.0,0.00071232,120]
[325160729,1714544949975,-500.0,0.00071232,120]
[325160730,1714544949998,-645.01634481,0.00071232,120]
[325160731,1714544950018,-489.75932267,0.00071232,30]
[325160732,1714544950038,-500.0,0.00071232,120]
[325160733,1714544950058,-500.0,0.00071232,120]
[325160734,1714544950079,-500.0,0.00071232,120]
[325160735,1714544950099,-151.0,0.00071232,120]
[325160736,1714544950119,-500.0,0.00071232,120]
[325160737,1714544950140,-500.0,0.00071232,120]
[325160738,1714544950162,-500.0,0.00071232,120]
[325160739,1714544950182,-500.0,0.00071232,120]
[325160740,1714544950202,-500.0,0.00071232,120]
[325160741,1714544950222,-500.0,0.00071232,120]
[325160742,1714544950244,-500.0,0.00071232,120]
[325160743,1714544950264,-500.0,0.00071232,120]
[325160744,1714544950285,-500.0,0.00071232,120]
[325160745,1714544950306,-500.0,0.00071232,7]
[325160746,1714544950327,-1107.63,0.00071232,120]
[325160747,1714544950348,-500.0,0.00071232,120]
[325160748,1714544950368,-500.0,0.00071232,120]
[325160749,1714544950388,-500.0,0.00071232,120]
[325160750,1714544950409,-500.0,0.00071232,120]
[325160751,1714544950430,-571.37815286,0.00071232,120]
[325160752,1714544950549,-500.0,0.00071232,120]
[325160753,1714544950569,-500.0,0.00071232,120]
[325160754,1714544950589,-500.0,0.00071232,120]
[325160755,1714544950609,-500.0,0.00071232,120]
[325160756,1714544950630,-500.0,0.00071232,120]
[325160757,1714544950650,-533.04000945,0.00071232,120]
[325160758,1714544950670,-501.10882373,0.00071232,120]
[325160759,1714544950692,-500.0,0.00071232,120]
[325160760,1714544950713,-500.0,0.00071232,120]
[325160761,1714544950734,-543.5279668,0.00071232,7]
[325160762,1714544950753,-500.91228663,0.00071232,120]
[325160763,1714544950774,-501.60155306,0.00071232,120]
[325160764,1714544950795,-500.0,0.00071232,120]
[325160765,1714544950815,-500.0,0.00071232,120]
[325160766,1714544950835,-193.41774977,0.00071232,120]
[325160767,1714544950854,-500.0,0.00071232,120]
[325160768,1714544950874,-500.75853599,0.00071232,120]
[325160769,1714544950895,-319.82131593,0.00071232,120]
[325160770,1714544950917,-500.51115075,0.00071232,120]
[325160771,1714544950937,-500.0,0.00071232,120]
[325160772,1714544950958,-500.0,0.00071232,120]
[325160773,1714544950979,-474.97587212,0.00071232,120]
[325160774,1714544969669,-499.83333,0.00046584,2]
[325160775,1714544976499,3906.91058146,0.0005,120]
[325160776,1714545009073,150.0,0.00036146,3]
[325160777,1714545012222,151.0,0.00045,120]
[325160778,1714545024682,428.52381,0.00046094,2]
[325160779,1714545024968,428.52381,0.00055078,2]
[325160818,1714545034293,-151.0,0.00060027,120]
[325160819,1714545034302,-428.52381,0.00064063,2]
[325160821,1714545034311,-200.65700333,0.00069,7]
[325160822,1714545034322,-62.29888105,0.00069,7]
[325160823,1714545034331,-1114.63111895,0.00071222,3]
[325160824,1714545034342,-1135.47888105,0.00071222,3]
[325160825,1714545034352,-1875.09,0.00071222,3]
[325160826,1714545034361,-4135.98,0.00071231,30]
[325160827,1714545034370,-4135.98,0.00071231,30]
[325160828,1714545034379,-4135.98,0.00071231,30]
[325160829,1714545034388,-4135.98,0.00071231,30]
[325160830,1714545034397,-4135.98,0.00071231,30]
[325160831,1714545034406,-4135.98,0.00071231,30]
[325160832,1714545034415,-4135.98,0.00071231,30]
[325160833,1714545034423,-4135.98,0.00071231,30]
[325160834,1714545034432,-25.02412788,0.00071232,120]
[325160835,1714545034441,-500.81839411,0.00071232,120]
[325160836,1714545034450,-500.0,0.00071232,120]
[325160837,1714545034459,-5041.91465038,0.00071232,120]
[325160838,1714545034468,-500.0,0.00071232,120]
[325160839,1714545034476,-500.0,0.00071232,120]
[325160840,1714545034486,-500.0,0.00071232,120]
[325160841,1714545034495,-500.0,0.00071232,120]
[325160842,1714545034504,-500.0,0.00071232,120]
[325160843,1714545034513,-500.0,0.00071232,120]
[325160845,1714545034522,-501.39558512,0.00071232,120]
[325160846,1714545034531,-500.0,0.00071232,120]
[325160848,1714545034540,-500.0,0.00071232,120]
[325160850,1714545034549,-500.0,0.00071232,120]
[325160851,1714545034558,-500.0,0.00071232,120]
[325160852,1714545034567,-500.0,0.00071232,120]
[325160853,1714545034576,-500.0,0.00071232,120]
[325160854,1714545034585,-500.0,0.00071232,120]
[325160855,1714545034594,-500.0,0.00071232,120]
[325160856,1714545034605,-332.43836146,0.00071232,120]
[325160857,1714545034617,-167.56163854,0.00071232,120]
[325160858,1714545034626,-500.0,0.00071232,120]
[325160859,1714545034635,-500.0,0.00071232,120]
[325160860,1714545034644,-500.0,0.00071232,120]
[325160861,1714545034653,-500.0,0.00071232,120]
[325160862,1714545034662,-500.0,0.00071232,120]
[325160863,1714545034671,-500.0,0.00071232,120]
[325160864,1714545034680,-500.0,0.00071232,2]
[325160865,1714545034689,-502.02902769,0.00071232,120]
[325160866,1714545034697,-500.0,0.00071232,120]
[325160867,1714545034707,-500.0,0.00071232,120]
[325160868,1714545034715,-500.0,0.00071232,120]
[325160869,1714545034724,-500.0,0.00071232,120]
[325160870,1714545034733,-500.77543528,0.00071232,120]
[325160871,1714545034742,-500.0,0.00071232,120]
[325160872,1714545034751,-500.0,0.00071232,120]
[325160873,1714545034760,-500.0,0.00071232,120]
[325160874,1714545034769,-500.0,0.00071232,120]
[325160875,1714545034779,-500.0,0.00071232,120]
[325160876,1714545034787,-500.0,0.00071232,120]
[325160877,1714545034796,-233.46401938,0.00071232,2]
[325160878,1714545034806,-500.0,0.00071232,120]
[325160879,1714545034814,-500.0,0.00071232,120]
[325160880,1714545034823,-778.65,0.00071232,120]
[325160881,1714545034832,-500.0,0.00071232,120]
[325160882,1714545034841,-500.0,0.00071232,120]
[325160883,1714545034852,-307.93494572,0.00071232,120]
[325160884,1714545034861,-500.0,0.00071232,120]
[325160885,1714545034870,-500.0,0.00071232,120]
[325160886,1714545034879,-500.0,0.00071232,120]
[325160887,1714545034888,-502.1300506,0.00071232,120]
[325160888,1714545034898,-500.0,0.00071232,120]
[325160889,1714545034907,-500.0,0.00071232,120]
[325160890,1714545034916,-500.0,0.00071232,120]
[325160891,1714545034927,-505.10575989,0.00071232,120]
[325160892,1714545034937,-2041.86,0.00071232,120]
[325160893,1714545034946,-500.0,0.00071232,120]
[325160894,1714545034955,-500.0,0.00071232,120]
[325160895,1714545034964,-500.0,0.00071232,120]
[325160896,1714545034973,-402.3131842,0.00071232,120]
[325160897,1714545034983,-500.0,0.00071232,120]
[325160898,1714545034992,-1964.34,0.00071232,120]
[325160899,1714545035003,-500.0,0.00071232,120]
[325160900,1714545035013,-500.0,0.00071232,120]
[325160901,1714545035022,-500.0,0.00071232,120]
[325160902,1714545035032,-500.0,0.00071232,120]
[325160903,1714545035041,-500.0,0.00071232,120]
[325160904,1714545035050,-500.0,0.00071232,120]
[325160905,1714545035059,-448.50081179,0.00071232,120]
[325160906,1714545035068,-500.0,0.00071232,120]
[325160907,1714545035077,-500.0,0.00071232,120]
[325160908,1714545035087,-501.66808483,0.00071232,120]
[325160909,1714545035096,-501.59012861,0.00071232,120]
[325160910,1714545035107,-500.0,0.00071232,120]
[325160911,1714545035116,-500.0,0.00071232,120]
[325160912,1714545035126,-500.0,0.00071232,120]
[325160913,1714545035135,-500.0,0.00071232,120]
[325160914,1714545035144,-500.0,0.00071232,120]
[325160915,1714545035154,-3379.51,0.00071232,2]
[325160916,1714545035163,-597.96,0.00071232,120]
[325160917,1714545035173,-3274.6,0.00071232,120]
[325160918,1714545035182,-500.0,0.00071232,120]
[325160919,1714545035191,-500.0,0.00071232,120]
[325160920,1714545035200,-500.0,0.00071232,120]
[325160921,1714545035211,-500.0,0.00071232,120]
[325160922,1714545035220,-500.0,0.00071232,120]
[325160923,1714545035230,-500.0,0.00071232,120]
[325160924,1714545035239,-398.54732798,0.00071232,120]
[325160925,1714545035248,-500.0,0.00071232,120]
[325160926,1714545035257,-502.75929577,0.00071232,120]
[325160927,1714545035267,-500.0,0.00071232,120]
[325160928,1714545035401,-500.0,0.00071232,120]
[325160929,1714545035411,-516.89,0.00071232,120]
[325160930,1714545035421,-500.0,0.00071232,120]
[325160931,1714545035430,-500.0,0.00071232,120]
[325160932,1714545035440,-502.70994668,0.00071232,120]
[325160933,1714545035449,-1620.76,0.00071232,120]
[325160934,1714545035458,-2000.17,0.00071232,120]
[325160935,1714545035468,-500.0,0.00071232,120]
[325160936,1714545035477,-500.0,0.00071232,120]
[325160937,1714545035487,-500.0,0.00071232,120]
[325160938,1714545035497,-500.0,0.00071232,60]
[325160939,1714545035506,-235.88795641,0.00071232,120]
[325160940,1714545035515,-500.0,0.00071232,120]
[325160941,1714545035525,-1281.61,0.00071232,120]